[Event "Titled Tuesday Blitz July 18 Late 2023"]
[White "Besedes, Danilo"]
[Black "Haydon, David L"]
[WhiteFideId "946796"]
[BlackFideId "415405"]
[WhiteElo "2563"]
[BlackElo "2701"]
[Result "0-1"]
[Round "10"]
[TimeControl "180+2"]
[Date "2023.07.18"]
[WhiteClock "0:00:10"]
[BlackClock "0:00:46"]
[Board "35"]

1. b3 {[%clk 0:03:00]}  d5 {[%clk 0:02:59]} 2. Bb2 {[%clk 0:03:01]}  c5 {[%clk 0:02:59]} 3. e3 {[%clk 0:03:01]}  Nc6 {[%clk 0:02:59]} 4. Bb5 {[%clk 0:03:01]}  Bd7 {[%clk 0:02:58]} 5. Nf3 {[%clk 0:03:01]}  Nf6 {[%clk 0:02:58]} 6. O-O {[%clk 0:03:00]}  Qc7 {[%clk 0:02:56]} 7. d4 {[%clk 0:02:59]}  e6 {[%clk 0:02:53]} 8. Nbd2 {[%clk 0:02:56]}  Bd6 {[%clk 0:02:51]} 9. dxc5 {[%clk 0:02:50]}  Bxc5 {[%clk 0:02:50]} 10. c4 {[%clk 0:02:51]}  dxc4 {[%clk 0:02:48]} 11. Nxc4 {[%clk 0:02:45]}  O-O {[%clk 0:02:47]} 12. Rc1 {[%clk 0:02:43]}  Rad8 {[%clk 0:02:46]} 13. Bxf6 {[%clk 0:02:20]}  gxf6 {[%clk 0:02:45]} 14. Qe2 {[%clk 0:02:18]}  a6 {[%clk 0:02:40]} 15. Bxc6 {[%clk 0:02:18]}  Bxc6 {[%clk 0:02:40]} 16. Rfd1 {[%clk 0:02:11]}  Rxd1+ {[%clk 0:02:37]} 17. Qxd1 {[%clk 0:02:07]}  Rd8 {[%clk 0:02:37]} 18. Qe2 {[%clk 0:02:04]}  Qd7 {[%clk 0:02:35]} 19. h3 {[%clk 0:01:47]}  Qd5 {[%clk 0:02:29]} 20. Qb2 {[%clk 0:01:41]}  Kg7 {[%clk 0:02:27]} 21. Ncd2 {[%clk 0:01:34]}  Bb4 {[%clk 0:02:22]} 22. Nc4 {[%clk 0:01:27]}  e5 {[%clk 0:02:09]} 23. a3 {[%clk 0:01:26]}  Be7 {[%clk 0:02:06]} 24. b4 {[%clk 0:01:08]}  Qd3 {[%clk 0:02:04]} 25. Na5 {[%clk 0:01:01]}  Bxf3 {[%clk 0:01:50]} 26. gxf3 {[%clk 0:01:01]}  Qg6+ {[%clk 0:01:51]} 27. Kh1 {[%clk 0:01:01]}  Qf5 {[%clk 0:01:49]} 28. Rg1+ {[%clk 0:00:56]}  Kh8 {[%clk 0:01:47]} 29. Rg3 {[%clk 0:00:57]}  Rd1+ {[%clk 0:01:36]} 30. Kg2 {[%clk 0:00:57]}  Qd3 {[%clk 0:01:35]} 31. Kh2 {[%clk 0:00:27]}  Rd2 {[%clk 0:01:34]} 32. Qc1 {[%clk 0:00:24]}  Rxf2+ {[%clk 0:01:33]} 33. Rg2 {[%clk 0:00:24]}  Rxg2+ {[%clk 0:01:23]} 34. Kxg2 {[%clk 0:00:25]}  Qe2+ {[%clk 0:01:22]} 35. Kg3 {[%clk 0:00:24]}  Kg7 {[%clk 0:01:22]} 36. Nxb7 {[%clk 0:00:21]}  f5 {[%clk 0:01:21]} 37. Nc5 {[%clk 0:00:18]}  h5 {[%clk 0:01:02]} 38. h4 {[%clk 0:00:17]}  Kg6 {[%clk 0:00:56]} 39. Qg1 {[%clk 0:00:12]}  Kh6 {[%clk 0:00:52]} 40. Qc1 {[%clk 0:00:09]}  Bxh4+ {[%clk 0:00:49]} 41. Kh3 {[%clk 0:00:09]}  Qxf3+ {[%clk 0:00:48]} 42. Kh2 {[%clk 0:00:09]}  Bg3+ {[%clk 0:00:48]} 43. Kh3 {[%clk 0:00:10]}  Bf4+ {[%clk 0:00:47]} 44. Kh4 {[%clk 0:00:10]}  Bg5# {[%clk 0:00:46]} 0-1


[Site "https://www.chess.com"]

[Event "Titled Tuesday Blitz July 18 Late 2023"]
[White "JERO-8914"]
[Black "Mendez Fortes, Eduardo Jesus"]
[BlackFideId "3502376"]
[WhiteElo "2509"]
[BlackElo "2638"]
[Result "0-1"]
[Round "10"]
[TimeControl "180+2"]
[Date "2023.07.18"]
[WhiteClock "0:00:16"]
[BlackClock "0:00:08"]
[Board "36"]

1. d4 {[%clk 0:02:59]}  Nf6 {[%clk 0:02:55]} 2. Nf3 {[%clk 0:02:58]}  d5 {[%clk 0:02:54]} 3. c4 {[%clk 0:02:58]}  e6 {[%clk 0:02:54]} 4. Nc3 {[%clk 0:02:58]}  Bb4 {[%clk 0:02:52]} 5. cxd5 {[%clk 0:02:55]}  exd5 {[%clk 0:02:52]} 6. Bg5 {[%clk 0:02:55]}  h6 {[%clk 0:02:48]} 7. Bxf6 {[%clk 0:02:52]}  Qxf6 {[%clk 0:02:48]} 8. Rc1 {[%clk 0:02:49]}  O-O {[%clk 0:02:42]} 9. e3 {[%clk 0:02:48]}  Bf5 {[%clk 0:02:39]} 10. a3 {[%clk 0:02:43]}  Bxc3+ {[%clk 0:02:39]} 11. Rxc3 {[%clk 0:02:39]}  c6 {[%clk 0:02:39]} 12. Be2 {[%clk 0:02:29]}  Nd7 {[%clk 0:02:36]} 13. O-O {[%clk 0:02:29]}  Qd6 {[%clk 0:02:29]} 14. b4 {[%clk 0:02:27]}  a6 {[%clk 0:02:27]} 15. Qb3 {[%clk 0:02:24]}  b5 {[%clk 0:02:10]} 16. Rfc1 {[%clk 0:02:20]}  Rfc8 {[%clk 0:02:09]} 17. Ne5 {[%clk 0:01:26]}  Nxe5 {[%clk 0:02:07]} 18. dxe5 {[%clk 0:01:26]}  Qxe5 {[%clk 0:02:06]} 19. Rxc6 {[%clk 0:01:26]}  Rxc6 {[%clk 0:02:06]} 20. Rxc6 {[%clk 0:01:27]}  Qa1+ {[%clk 0:02:04]} 21. Bf1 {[%clk 0:01:27]}  Be6 {[%clk 0:01:57]} 22. Qc3 {[%clk 0:01:26]}  Qd1 {[%clk 0:01:49]} 23. Qc1 {[%clk 0:01:23]}  Qb3 {[%clk 0:01:44]} 24. Rc3 {[%clk 0:01:02]}  Qa2 {[%clk 0:01:43]} 25. Bd3 {[%clk 0:01:02]}  Rd8 {[%clk 0:01:38]} 26. Bb1 {[%clk 0:01:02]}  Qe2 {[%clk 0:01:37]} 27. Rc2 {[%clk 0:00:53]}  Qg4 {[%clk 0:01:36]} 28. Rd2 {[%clk 0:00:48]}  Qg5 {[%clk 0:01:31]} 29. Rd4 {[%clk 0:00:45]}  Bh3 {[%clk 0:01:22]} 30. g3 {[%clk 0:00:22]}  Rc8 {[%clk 0:01:18]} 31. Qd2 {[%clk 0:00:22]}  Be6 {[%clk 0:01:17]} 32. Bd3 {[%clk 0:00:20]}  Qe5 {[%clk 0:01:15]} 33. Kg2 {[%clk 0:00:20]}  Qh5 {[%clk 0:01:13]} 34. h4 {[%clk 0:00:18]}  Qe5 {[%clk 0:01:11]} 35. Be2 {[%clk 0:00:18]}  Qf5 {[%clk 0:01:07]} 36. Bf3 {[%clk 0:00:18]}  Qh3+ {[%clk 0:01:07]} 37. Kg1 {[%clk 0:00:15]}  Qf5 {[%clk 0:00:59]} 38. Bxd5 {[%clk 0:00:13]}  Qb1+ {[%clk 0:00:56]} 39. Kg2 {[%clk 0:00:13]}  Bf5 {[%clk 0:00:29]} 40. Bf3 {[%clk 0:00:08]}  Rc2 {[%clk 0:00:20]} 41. Rd8+ {[%clk 0:00:08]}  Kh7 {[%clk 0:00:20]} 42. Qd4 {[%clk 0:00:08]}  Qe1 {[%clk 0:00:16]} 43. e4 {[%clk 0:00:08]}  Rxf2+ {[%clk 0:00:15]} 44. Qxf2 {[%clk 0:00:08]}  Bh3+ {[%clk 0:00:15]} 45. Kxh3 {[%clk 0:00:07]}  Qxf2 {[%clk 0:00:16]} 46. Kg4 {[%clk 0:00:07]}  g6 {[%clk 0:00:14]} 47. Kf4 {[%clk 0:00:07]}  Kg7 {[%clk 0:00:13]} 48. Rd7 {[%clk 0:00:07]}  Qb6 {[%clk 0:00:13]} 49. Rd5 {[%clk 0:00:07]}  Qf6+ {[%clk 0:00:13]} 50. Ke3 {[%clk 0:00:07]}  Qc3+ {[%clk 0:00:12]} 51. Rd3 {[%clk 0:00:08]}  Qc1+ {[%clk 0:00:12]} 52. Ke2 {[%clk 0:00:08]}  Kf6 {[%clk 0:00:11]} 53. Rd5 {[%clk 0:00:07]}  Qxa3 {[%clk 0:00:11]} 54. e5+ {[%clk 0:00:07]}  Ke6 {[%clk 0:00:11]} 55. Rd3 {[%clk 0:00:06]}  Qxb4 {[%clk 0:00:11]} 56. Re3 {[%clk 0:00:07]}  a5 {[%clk 0:00:10]} 57. Bg4+ {[%clk 0:00:07]}  Ke7 {[%clk 0:00:11]} 58. e6 {[%clk 0:00:07]}  f5 {[%clk 0:00:11]} 59. Bf3 {[%clk 0:00:07]}  a4 {[%clk 0:00:11]} 60. Rd3 {[%clk 0:00:07]}  a3 {[%clk 0:00:11]} 61. Bd5 {[%clk 0:00:08]}  Qb2+ {[%clk 0:00:10]} 62. Ke3 {[%clk 0:00:08]}  a2 {[%clk 0:00:10]} 63. Bxa2 {[%clk 0:00:09]}  Qxa2 {[%clk 0:00:10]} 64. Rd7+ {[%clk 0:00:10]}  Kxe6 {[%clk 0:00:10]} 65. Rh7 {[%clk 0:00:11]}  Qb2 {[%clk 0:00:09]} 66. Kf3 {[%clk 0:00:11]}  Qc3+ {[%clk 0:00:09]} 67. Kg2 {[%clk 0:00:11]}  b4 {[%clk 0:00:09]} 68. Kh3 {[%clk 0:00:11]}  Qd2 {[%clk 0:00:09]} 69. Rxh6 {[%clk 0:00:12]}  Qxh6 {[%clk 0:00:08]} 70. h5 {[%clk 0:00:12]}  Qxh5+ {[%clk 0:00:08]} 71. Kg2 {[%clk 0:00:13]}  Qe2+ {[%clk 0:00:08]} 72. Kh3 {[%clk 0:00:13]}  b3 {[%clk 0:00:07]} 73. g4 {[%clk 0:00:14]}  Qxg4+ {[%clk 0:00:07]} 74. Kh2 {[%clk 0:00:15]}  b2 {[%clk 0:00:07]} 75. Kh1 {[%clk 0:00:15]}  b1=Q+ {[%clk 0:00:07]} 76. Kh2 {[%clk 0:00:16]}  Qbg1# {[%clk 0:00:08]} 0-1


[Site "https://www.chess.com"]

[Event "Titled Tuesday Blitz July 18 Late 2023"]
[White "Quintiliano Pinto, Renato R."]
[Black "Santos Flores, Alberto"]
[WhiteFideId "2117568"]
[BlackFideId "3601234"]
[WhiteElo "2684"]
[BlackElo "2539"]
[Result "1-0"]
[Round "10"]
[TimeControl "180+2"]
[Date "2023.07.18"]
[WhiteClock "0:00:17"]
[BlackClock "0:00:05"]
[Board "42"]

1. Nf3 {[%clk 0:03:00]}  d5 {[%clk 0:02:59]} 2. b3 {[%clk 0:03:01]}  Bf5 {[%clk 0:02:59]} 3. Bb2 {[%clk 0:03:01]}  h6 {[%clk 0:02:57]} 4. g3 {[%clk 0:03:01]}  e6 {[%clk 0:02:56]} 5. Bg2 {[%clk 0:03:02]}  Nf6 {[%clk 0:02:57]} 6. O-O {[%clk 0:03:03]}  Nbd7 {[%clk 0:02:56]} 7. d3 {[%clk 0:03:03]}  Be7 {[%clk 0:02:56]} 8. c4 {[%clk 0:03:04]}  c6 {[%clk 0:02:56]} 9. Nc3 {[%clk 0:03:05]}  O-O {[%clk 0:02:55]} 10. h3 {[%clk 0:03:05]}  Bh7 {[%clk 0:02:55]} 11. Re1 {[%clk 0:03:05]}  a5 {[%clk 0:02:53]} 12. a3 {[%clk 0:02:55]}  Qb6 {[%clk 0:02:52]} 13. Na4 {[%clk 0:02:45]}  Qd8 {[%clk 0:02:44]} 14. Ne5 {[%clk 0:02:30]}  Nxe5 {[%clk 0:02:43]} 15. Bxe5 {[%clk 0:02:31]}  Nd7 {[%clk 0:02:44]} 16. Bb2 {[%clk 0:02:31]}  b5 {[%clk 0:02:42]} 17. cxb5 {[%clk 0:02:29]}  cxb5 {[%clk 0:02:42]} 18. Nc3 {[%clk 0:02:29]}  Qb6 {[%clk 0:02:41]} 19. a4 {[%clk 0:02:25]}  bxa4 {[%clk 0:02:30]} 20. Nxa4 {[%clk 0:02:26]}  Qb7 {[%clk 0:02:25]} 21. e4 {[%clk 0:02:24]}  dxe4 {[%clk 0:02:18]} 22. dxe4 {[%clk 0:02:25]}  Nb6 {[%clk 0:02:04]} 23. e5 {[%clk 0:02:12]}  Nd5 {[%clk 0:02:04]} 24. Nc3 {[%clk 0:02:06]}  Rfd8 {[%clk 0:01:55]} 25. Nxd5 {[%clk 0:02:05]}  exd5 {[%clk 0:01:55]} 26. e6 {[%clk 0:02:05]}  Bb4 {[%clk 0:01:47]} 27. Qd4 {[%clk 0:01:45]}  fxe6 {[%clk 0:01:47]} 28. Rxe6 {[%clk 0:01:43]}  Bf8 {[%clk 0:01:37]} 29. Rxh6 {[%clk 0:01:32]}  Qxb3 {[%clk 0:01:32]} 30. Rh5 {[%clk 0:01:17]}  Be4 {[%clk 0:01:27]} 31. Rg5 {[%clk 0:01:13]}  Qb7 {[%clk 0:01:12]} 32. f3 {[%clk 0:01:08]}  Bh7 {[%clk 0:01:11]} 33. Rc1 {[%clk 0:00:57]}  a4 {[%clk 0:01:07]} 34. h4 {[%clk 0:00:50]}  a3 {[%clk 0:01:05]} 35. Ba1 {[%clk 0:00:51]}  a2 {[%clk 0:00:49]} 36. h5 {[%clk 0:00:48]}  Ra6 {[%clk 0:00:43]} 37. Kh2 {[%clk 0:00:42]}  Rd7 {[%clk 0:00:35]} 38. Re1 {[%clk 0:00:35]}  Qa8 {[%clk 0:00:34]} 39. f4 {[%clk 0:00:32]}  Kh8 {[%clk 0:00:23]} 40. Rxd5 {[%clk 0:00:30]}  Rxd5 {[%clk 0:00:22]} 41. Bxd5 {[%clk 0:00:31]}  Qd8 {[%clk 0:00:21]} 42. Bf7 {[%clk 0:00:18]}  Qxd4 {[%clk 0:00:20]} 43. Bxd4 {[%clk 0:00:18]}  Bb1 {[%clk 0:00:17]} 44. Re8 {[%clk 0:00:16]}  Kh7 {[%clk 0:00:17]} 45. Rxf8 {[%clk 0:00:16]}  a1=Q {[%clk 0:00:17]} 46. Bg6+ {[%clk 0:00:15]}  Rxg6 {[%clk 0:00:16]} 47. hxg6+ {[%clk 0:00:16]}  Bxg6 {[%clk 0:00:05]} 48. Bxa1 {[%clk 0:00:17]} 1-0


[Site "https://www.chess.com"]

[Event "Titled Tuesday Blitz July 18 Late 2023"]
[White "Rangel, Daniel"]
[Black "Karttunen, Mika"]
[WhiteFideId "2124475"]
[BlackFideId "502081"]
[WhiteElo "2530"]
[BlackElo "2643"]
[Result "0-1"]
[Round "10"]
[TimeControl "180+2"]
[Date "2023.07.18"]
[WhiteClock "0:00:00"]
[BlackClock "0:00:43"]
[Board "43"]

1. c4 {[%clk 0:03:00]}  e5 {[%clk 0:02:59]} 2. g3 {[%clk 0:03:00]}  d6 {[%clk 0:02:58]} 3. Bg2 {[%clk 0:03:00]}  Nc6 {[%clk 0:02:58]} 4. Nc3 {[%clk 0:03:00]}  Nf6 {[%clk 0:02:58]} 5. e3 {[%clk 0:02:57]}  g6 {[%clk 0:02:58]} 6. Nge2 {[%clk 0:02:56]}  Bg7 {[%clk 0:02:59]} 7. O-O {[%clk 0:02:55]}  O-O {[%clk 0:02:59]} 8. b3 {[%clk 0:02:43]}  Bf5 {[%clk 0:02:54]} 9. d4 {[%clk 0:02:38]}  exd4 {[%clk 0:02:52]} 10. Nxd4 {[%clk 0:02:39]}  Nxd4 {[%clk 0:02:48]} 11. exd4 {[%clk 0:02:32]}  c5 {[%clk 0:02:47]} 12. Bb2 {[%clk 0:02:28]}  cxd4 {[%clk 0:02:45]} 13. Qxd4 {[%clk 0:02:28]}  Ne4 {[%clk 0:02:37]} 14. Qxg7+ {[%clk 0:02:11]}  Kxg7 {[%clk 0:02:36]} 15. Nxe4+ {[%clk 0:02:11]}  f6 {[%clk 0:02:37]} 16. Rad1 {[%clk 0:02:09]}  Bxe4 {[%clk 0:02:33]} 17. Bxe4 {[%clk 0:02:07]}  Qa5 {[%clk 0:02:17]} 18. a3 {[%clk 0:01:42]}  Rae8 {[%clk 0:02:15]} 19. Bd5 {[%clk 0:01:23]}  Re2 {[%clk 0:02:11]} 20. Bd4 {[%clk 0:01:12]}  b6 {[%clk 0:01:46]} 21. b4 {[%clk 0:00:37]}  Qa4 {[%clk 0:01:40]} 22. b5 {[%clk 0:00:32]}  Rfe8 {[%clk 0:01:34]} 23. Kg2 {[%clk 0:00:20]}  R8e7 {[%clk 0:01:31]} 24. Rd3 {[%clk 0:00:19]}  Qc2 {[%clk 0:01:29]} 25. Rf3 {[%clk 0:00:18]}  R7e5 {[%clk 0:01:18]} 26. Bxe5 {[%clk 0:00:16]}  dxe5 {[%clk 0:01:17]} 27. a4 {[%clk 0:00:11]}  e4 {[%clk 0:01:07]} 28. Rf4 {[%clk 0:00:09]}  f5 {[%clk 0:00:59]} 29. h4 {[%clk 0:00:08]}  Qxa4 {[%clk 0:00:51]} 30. g4 {[%clk 0:00:06]}  Kf6 {[%clk 0:00:49]} 31. gxf5 {[%clk 0:00:05]}  gxf5 {[%clk 0:00:49]} 32. Bc6 {[%clk 0:00:02]}  Ke5 {[%clk 0:00:47]} 33. Kg3 {[%clk 0:00:01]}  Qxc4 {[%clk 0:00:45]} 34. f3 {[%clk 0:00:00]}  Qg8+ {[%clk 0:00:43]} 0-1


[Site "https://www.chess.com"]

[Event "Titled Tuesday Blitz July 18 Late 2023"]
[White "Omelja, Artem"]
[Black "Graif, William"]
[WhiteFideId "14119846"]
[BlackFideId "2609835"]
[WhiteElo "2638"]
[BlackElo "2530"]
[Result "0-1"]
[Round "10"]
[TimeControl "180+2"]
[Date "2023.07.18"]
[WhiteClock "0:00:00"]
[BlackClock "0:00:03"]
[Board "45"]

1. h3 {[%clk 0:03:00]}  e5 {[%clk 0:02:55]} 2. a3 {[%clk 0:02:58]}  d5 {[%clk 0:02:54]} 3. c4 {[%clk 0:02:55]}  d4 {[%clk 0:02:47]} 4. d3 {[%clk 0:02:52]}  a5 {[%clk 0:02:41]} 5. Nf3 {[%clk 0:02:42]}  Nc6 {[%clk 0:02:38]} 6. g3 {[%clk 0:02:40]}  f5 {[%clk 0:02:23]} 7. Nbd2 {[%clk 0:02:38]}  Nf6 {[%clk 0:02:22]} 8. Bg2 {[%clk 0:02:16]}  Bd6 {[%clk 0:01:56]} 9. O-O {[%clk 0:02:13]}  O-O {[%clk 0:01:53]} 10. Nh2 {[%clk 0:02:11]}  Qe7 {[%clk 0:01:44]} 11. Rb1 {[%clk 0:02:05]}  e4 {[%clk 0:01:33]} 12. dxe4 {[%clk 0:01:37]}  fxe4 {[%clk 0:01:33]} 13. Nb3 {[%clk 0:01:37]}  Be5 {[%clk 0:01:11]} 14. Bg5 {[%clk 0:01:21]}  a4 {[%clk 0:00:58]} 15. Nd2 {[%clk 0:01:18]}  e3 {[%clk 0:00:58]} 16. f4 {[%clk 0:01:18]}  Bd6 {[%clk 0:00:49]} 17. Ne4 {[%clk 0:01:15]}  Bf5 {[%clk 0:00:42]} 18. Nxd6 {[%clk 0:01:08]}  Bxb1 {[%clk 0:00:35]} 19. Nxb7 {[%clk 0:01:07]}  Be4 {[%clk 0:00:34]} 20. Bxe4 {[%clk 0:00:40]}  Qxe4 {[%clk 0:00:34]} 21. Nc5 {[%clk 0:00:41]}  Qf5 {[%clk 0:00:30]} 22. Nxa4 {[%clk 0:00:31]}  Qxh3 {[%clk 0:00:26]} 23. Nc5 {[%clk 0:00:18]}  Qxg3+ {[%clk 0:00:23]} 24. Kh1 {[%clk 0:00:19]}  Ng4 {[%clk 0:00:18]} 25. Nxg4 {[%clk 0:00:18]}  Qxg4 {[%clk 0:00:19]} 26. Qe1 {[%clk 0:00:16]}  Qh3+ {[%clk 0:00:17]} 27. Kg1 {[%clk 0:00:16]}  Ra5 {[%clk 0:00:17]} 28. Nd3 {[%clk 0:00:13]}  Raf5 {[%clk 0:00:13]} 29. Qh4 {[%clk 0:00:09]}  Qxh4 {[%clk 0:00:09]} 30. Bxh4 {[%clk 0:00:10]}  h6 {[%clk 0:00:06]} 31. Bg3 {[%clk 0:00:10]}  g5 {[%clk 0:00:06]} 32. b4 {[%clk 0:00:10]}  h5 {[%clk 0:00:04]} 33. Bh2 {[%clk 0:00:08]}  h4 {[%clk 0:00:02]} 34. b5 {[%clk 0:00:08]}  Na5 {[%clk 0:00:02]} 35. Ne5 {[%clk 0:00:05]}  gxf4 {[%clk 0:00:02]} 36. Nf3 {[%clk 0:00:05]}  Nxc4 {[%clk 0:00:02]} 37. Nxd4 {[%clk 0:00:05]}  Rg5+ {[%clk 0:00:02]} 38. Kh1 {[%clk 0:00:06]}  Nd2 {[%clk 0:00:02]} 39. Rxf4 {[%clk 0:00:03]}  Rxf4 {[%clk 0:00:01]} 40. Bxf4 {[%clk 0:00:03]}  Rd5 {[%clk 0:00:02]} 41. Bxe3 {[%clk 0:00:03]}  Nc4 {[%clk 0:00:02]} 42. Bf2 {[%clk 0:00:00]}  Nxa3 {[%clk 0:00:03]} 0-1


[Site "https://www.chess.com"]

[Event "Titled Tuesday Blitz July 18 Late 2023"]
[White "Sos Andreu, Eric"]
[Black "Ganiev, Roman"]
[WhiteFideId "22247017"]
[BlackFideId "4131452"]
[WhiteElo "2522"]
[BlackElo "2599"]
[Result "0-1"]
[Round "10"]
[TimeControl "180+2"]
[Date "2023.07.18"]
[WhiteClock "0:00:13"]
[BlackClock "0:00:20"]
[Board "47"]

1. d4 {[%clk 0:02:57]}  Nf6 {[%clk 0:02:59]} 2. c4 {[%clk 0:02:58]}  e6 {[%clk 0:03:00]} 3. g3 {[%clk 0:02:58]}  d5 {[%clk 0:02:59]} 4. Bg2 {[%clk 0:02:58]}  Be7 {[%clk 0:03:00]} 5. Nf3 {[%clk 0:02:58]}  O-O {[%clk 0:03:01]} 6. O-O {[%clk 0:02:57]}  Nbd7 {[%clk 0:03:02]} 7. Nbd2 {[%clk 0:02:54]}  c6 {[%clk 0:03:02]} 8. Qc2 {[%clk 0:02:54]}  b6 {[%clk 0:03:02]} 9. e4 {[%clk 0:02:54]}  dxc4 {[%clk 0:03:03]} 10. Nxc4 {[%clk 0:02:52]}  Bb7 {[%clk 0:03:03]} 11. Rd1 {[%clk 0:02:51]}  c5 {[%clk 0:03:03]} 12. e5 {[%clk 0:02:43]}  Nd5 {[%clk 0:03:03]} 13. b3 {[%clk 0:02:38]}  Rc8 {[%clk 0:03:02]} 14. Qe2 {[%clk 0:02:33]}  b5 {[%clk 0:02:54]} 15. Ne3 {[%clk 0:02:23]}  Nxe3 {[%clk 0:02:54]} 16. Bxe3 {[%clk 0:02:18]}  c4 {[%clk 0:02:54]} 17. Rac1 {[%clk 0:02:14]}  Bd5 {[%clk 0:02:52]} 18. bxc4 {[%clk 0:02:12]}  bxc4 {[%clk 0:02:52]} 19. Nd2 {[%clk 0:02:11]}  Nb6 {[%clk 0:02:52]} 20. Bxd5 {[%clk 0:02:09]}  Qxd5 {[%clk 0:02:51]} 21. Nb1 {[%clk 0:02:05]}  Rfd8 {[%clk 0:02:35]} 22. Nc3 {[%clk 0:02:05]}  Qd7 {[%clk 0:02:36]} 23. Qf3 {[%clk 0:01:58]}  Nd5 {[%clk 0:02:34]} 24. h4 {[%clk 0:01:50]}  Nxc3 {[%clk 0:02:29]} 25. Rxc3 {[%clk 0:01:49]}  Qd5 {[%clk 0:02:30]} 26. Qe2 {[%clk 0:01:44]}  Bb4 {[%clk 0:02:29]} 27. Rc2 {[%clk 0:01:43]}  c3 {[%clk 0:02:21]} 28. Rb1 {[%clk 0:01:42]}  Qc4 {[%clk 0:01:54]} 29. Qxc4 {[%clk 0:01:31]}  Rxc4 {[%clk 0:01:52]} 30. Rb3 {[%clk 0:01:31]}  Rdc8 {[%clk 0:01:31]} 31. Kf1 {[%clk 0:01:31]}  Ba5 {[%clk 0:01:11]} 32. Rb5 {[%clk 0:01:26]}  Bb6 {[%clk 0:01:06]} 33. Rb3 {[%clk 0:01:20]}  h5 {[%clk 0:01:00]} 34. Ke2 {[%clk 0:01:20]}  Bxd4 {[%clk 0:00:55]} 35. Bxd4 {[%clk 0:01:19]}  Rxd4 {[%clk 0:00:56]} 36. Rbxc3 {[%clk 0:01:19]}  Re4+ {[%clk 0:00:54]} 37. Kf3 {[%clk 0:01:14]}  Rxc3+ {[%clk 0:00:53]} 38. Rxc3 {[%clk 0:01:15]}  Rxe5 {[%clk 0:00:53]} 39. Ra3 {[%clk 0:01:16]}  a5 {[%clk 0:00:53]} 40. Kf4 {[%clk 0:01:13]}  Rd5 {[%clk 0:00:53]} 41. Ke3 {[%clk 0:01:04]}  Kh7 {[%clk 0:00:52]} 42. Rb3 {[%clk 0:01:04]}  Kg6 {[%clk 0:00:51]} 43. Rb7 {[%clk 0:01:04]}  Re5+ {[%clk 0:00:49]} 44. Kf3 {[%clk 0:01:03]}  Rc5 {[%clk 0:00:49]} 45. Ra7 {[%clk 0:01:02]}  Rc3+ {[%clk 0:00:47]} 46. Kg2 {[%clk 0:01:02]}  Ra3 {[%clk 0:00:48]} 47. Ra8 {[%clk 0:00:55]}  Rxa2 {[%clk 0:00:48]} 48. Ra7 {[%clk 0:00:56]}  a4 {[%clk 0:00:49]} 49. Ra5 {[%clk 0:00:55]}  a3 {[%clk 0:00:48]} 50. Kf3 {[%clk 0:00:56]}  f6 {[%clk 0:00:49]} 51. Kg2 {[%clk 0:00:56]}  e5 {[%clk 0:00:49]} 52. Kf3 {[%clk 0:00:56]}  Kf5 {[%clk 0:00:49]} 53. Ra4 {[%clk 0:00:56]}  g6 {[%clk 0:00:45]} 54. Ra5 {[%clk 0:00:56]}  g5 {[%clk 0:00:42]} 55. hxg5 {[%clk 0:00:55]}  fxg5 {[%clk 0:00:42]} 56. Ke3 {[%clk 0:00:53]}  Ra1 {[%clk 0:00:42]} 57. Kf3 {[%clk 0:00:44]}  a2 {[%clk 0:00:42]} 58. Kg2 {[%clk 0:00:43]}  h4 {[%clk 0:00:42]} 59. gxh4 {[%clk 0:00:41]}  gxh4 {[%clk 0:00:43]} 60. Ra4 {[%clk 0:00:38]}  e4 {[%clk 0:00:41]} 61. Ra3 {[%clk 0:00:37]}  Kf4 {[%clk 0:00:41]} 62. Ra4 {[%clk 0:00:37]}  h3+ {[%clk 0:00:38]} 63. Kh2 {[%clk 0:00:37]}  Kf3 {[%clk 0:00:38]} 64. Ra8 {[%clk 0:00:27]}  Kxf2 {[%clk 0:00:37]} 65. Rf8+ {[%clk 0:00:24]}  Ke2 {[%clk 0:00:37]} 66. Ra8 {[%clk 0:00:20]}  e3 {[%clk 0:00:37]} 67. Ra7 {[%clk 0:00:19]}  Ke1 {[%clk 0:00:33]} 68. Kxh3 {[%clk 0:00:18]}  e2 {[%clk 0:00:30]} 69. Kg2 {[%clk 0:00:18]}  Kd2 {[%clk 0:00:21]} 70. Rd7+ {[%clk 0:00:17]}  Ke3 {[%clk 0:00:20]} 71. Re7+ {[%clk 0:00:18]}  Kd3 {[%clk 0:00:19]} 72. Rd7+ {[%clk 0:00:18]}  Kc4 {[%clk 0:00:18]} 73. Rc7+ {[%clk 0:00:16]}  Kd5 {[%clk 0:00:18]} 74. Rd7+ {[%clk 0:00:16]}  Kc6 {[%clk 0:00:18]} 75. Re7 {[%clk 0:00:14]}  e1=Q {[%clk 0:00:19]} 76. Rxe1 {[%clk 0:00:14]}  Rxe1 {[%clk 0:00:20]} 77. Kf2 {[%clk 0:00:13]}  a1=Q {[%clk 0:00:20]} 0-1


[Site "https://www.chess.com"]

[Event "Titled Tuesday Blitz July 18 Late 2023"]
[White "Piesik, Piotr"]
[Black "Hnydiuk, Aleksander"]
[WhiteFideId "1136194"]
[BlackFideId "1109057"]
[WhiteElo "2597"]
[BlackElo "2513"]
[Result "1-0"]
[Round "10"]
[TimeControl "180+2"]
[Date "2023.07.18"]
[WhiteClock "0:00:12"]
[BlackClock "0:00:00"]
[Board "48"]

1. Nf3 {[%clk 0:02:57]}  d5 {[%clk 0:02:59]} 2. g3 {[%clk 0:02:57]}  Bg4 {[%clk 0:02:55]} 3. Bg2 {[%clk 0:02:57]}  Nd7 {[%clk 0:02:55]} 4. O-O {[%clk 0:02:58]}  e5 {[%clk 0:02:55]} 5. d3 {[%clk 0:02:58]}  Ngf6 {[%clk 0:02:54]} 6. Nbd2 {[%clk 0:02:59]}  Bd6 {[%clk 0:02:54]} 7. e4 {[%clk 0:02:58]}  c6 {[%clk 0:02:54]} 8. h3 {[%clk 0:02:58]}  Bh5 {[%clk 0:02:53]} 9. Qe1 {[%clk 0:02:59]}  O-O {[%clk 0:02:53]} 10. Nh4 {[%clk 0:02:59]}  Re8 {[%clk 0:02:52]} 11. Nf5 {[%clk 0:02:59]}  Bf8 {[%clk 0:02:52]} 12. Nb3 {[%clk 0:03:00]}  h6 {[%clk 0:02:30]} 13. g4 {[%clk 0:02:49]}  Bg6 {[%clk 0:02:30]} 14. Ng3 {[%clk 0:02:50]}  Qc7 {[%clk 0:02:04]} 15. Qe2 {[%clk 0:02:47]}  Nc5 {[%clk 0:01:57]} 16. Nxc5 {[%clk 0:02:45]}  Bxc5 {[%clk 0:01:58]} 17. h4 {[%clk 0:02:44]}  Nd7 {[%clk 0:01:28]} 18. h5 {[%clk 0:02:35]}  Bh7 {[%clk 0:01:27]} 19. g5 {[%clk 0:02:36]}  hxg5 {[%clk 0:01:22]} 20. Bxg5 {[%clk 0:02:37]}  Nf8 {[%clk 0:01:21]} 21. Qg4 {[%clk 0:02:20]}  Ne6 {[%clk 0:01:12]} 22. h6 {[%clk 0:02:20]}  Be7 {[%clk 0:00:28]} 23. Be3 {[%clk 0:02:05]}  Qd8 {[%clk 0:00:23]} 24. hxg7 {[%clk 0:01:59]}  Bg5 {[%clk 0:00:23]} 25. Bxg5 {[%clk 0:01:53]}  Qxg5 {[%clk 0:00:22]} 26. Qxg5 {[%clk 0:01:54]}  Nxg5 {[%clk 0:00:23]} 27. exd5 {[%clk 0:01:54]}  cxd5 {[%clk 0:00:23]} 28. Bxd5 {[%clk 0:01:54]}  Rac8 {[%clk 0:00:23]} 29. Rac1 {[%clk 0:01:50]}  Rc7 {[%clk 0:00:18]} 30. Nh5 {[%clk 0:01:49]}  Rd8 {[%clk 0:00:14]} 31. Bg2 {[%clk 0:01:34]}  Bg6 {[%clk 0:00:14]} 32. Nf6+ {[%clk 0:01:32]}  Kxg7 {[%clk 0:00:13]} 33. Nd5 {[%clk 0:01:31]}  Rc5 {[%clk 0:00:12]} 34. Ne3 {[%clk 0:01:26]}  b6 {[%clk 0:00:10]} 35. f4 {[%clk 0:01:24]}  exf4 {[%clk 0:00:10]} 36. Rxf4 {[%clk 0:01:24]}  Ne6 {[%clk 0:00:09]} 37. Rc4 {[%clk 0:01:22]}  Rxc4 {[%clk 0:00:06]} 38. Nxc4 {[%clk 0:01:21]}  Nd4 {[%clk 0:00:06]} 39. Kf2 {[%clk 0:01:21]}  Re8 {[%clk 0:00:05]} 40. Ne3 {[%clk 0:01:14]}  f5 {[%clk 0:00:04]} 41. Bf3 {[%clk 0:01:01]}  f4 {[%clk 0:00:03]} 42. Nd5 {[%clk 0:00:58]}  Rh8 {[%clk 0:00:01]} 43. Nxf4 {[%clk 0:00:48]}  Rf8 {[%clk 0:00:01]} 44. Kg3 {[%clk 0:00:46]}  Nf5+ {[%clk 0:00:01]} 45. Kf2 {[%clk 0:00:37]}  Nd4 {[%clk 0:00:01]} 46. Kg3 {[%clk 0:00:14]}  Nf5+ {[%clk 0:00:01]} 47. Kh3 {[%clk 0:00:14]}  Ne3 {[%clk 0:00:00]} 48. Ne6+ {[%clk 0:00:12]} 1-0


[Site "https://www.chess.com"]